[Event "Titled Tuesday Blitz May 30 Late 2023"]
[White "Vovk, Orest"]
[Black "Melikyan, Gnel"]
[WhiteFideId "14113490"]
[BlackFideId "54109990"]
[WhiteElo "2215"]
[BlackElo "2138"]
[Result "1-0"]
[Round "10"]
[TimeControl "180+2"]
[Date "2023.05.31"]
[WhiteClock "0:00:04"]
[BlackClock "0:01:21"]

1. g4 {[%clk 0:02:52]}  a5 {[%clk 0:02:57]} 2. Bg2 {[%clk 0:02:52]}  a4 {[%clk 0:02:57]} 3. a3 {[%clk 0:02:51]}  c6 {[%clk 0:02:57]} 4. d4 {[%clk 0:02:41]}  d5 {[%clk 0:02:53]} 5. g5 {[%clk 0:02:41]}  h6 {[%clk 0:02:53]} 6. h4 {[%clk 0:02:39]}  hxg5 {[%clk 0:02:53]} 7. hxg5 {[%clk 0:02:40]}  Rxh1 {[%clk 0:02:53]} 8. Bxh1 {[%clk 0:02:41]}  Bf5 {[%clk 0:02:53]} 9. Nc3 {[%clk 0:02:39]}  e6 {[%clk 0:02:54]} 10. e4 {[%clk 0:02:39]}  Bg6 {[%clk 0:02:52]} 11. Qd3 {[%clk 0:02:33]}  Nd7 {[%clk 0:02:50]} 12. f4 {[%clk 0:02:33]}  Ne7 {[%clk 0:02:46]} 13. Nge2 {[%clk 0:02:26]}  dxe4 {[%clk 0:02:42]} 14. Bxe4 {[%clk 0:02:23]}  Bxe4 {[%clk 0:02:36]} 15. Nxe4 {[%clk 0:02:21]}  Nf5 {[%clk 0:02:36]} 16. N2g3 {[%clk 0:02:18]}  g6 {[%clk 0:02:33]} 17. Bd2 {[%clk 0:02:11]}  Bg7 {[%clk 0:02:25]} 18. Nxf5 {[%clk 0:02:11]}  exf5 {[%clk 0:02:23]} 19. Nd6+ {[%clk 0:02:11]}  Kf8 {[%clk 0:02:24]} 20. O-O-O {[%clk 0:02:04]}  b5 {[%clk 0:02:22]} 21. Bb4 {[%clk 0:02:01]}  Kg8 {[%clk 0:02:21]} 22. Re1 {[%clk 0:01:55]}  Nf8 {[%clk 0:02:20]} 23. Re8 {[%clk 0:01:46]}  Qxe8 {[%clk 0:02:18]} 24. Nxe8 {[%clk 0:01:47]}  Rxe8 {[%clk 0:02:17]} 25. d5 {[%clk 0:01:34]}  cxd5 {[%clk 0:02:17]} 26. Bxf8 {[%clk 0:01:32]}  Bxf8 {[%clk 0:02:07]} 27. Qxb5 {[%clk 0:01:25]}  Re4 {[%clk 0:02:07]} 28. Qxd5 {[%clk 0:01:14]}  Rxf4 {[%clk 0:02:05]} 29. c4 {[%clk 0:01:14]}  Rf1+ {[%clk 0:02:00]} 30. Kd2 {[%clk 0:01:10]}  Rf2+ {[%clk 0:02:00]} 31. Ke3 {[%clk 0:01:04]}  Rxb2 {[%clk 0:01:59]} 32. Qa8 {[%clk 0:00:42]}  Rb3+ {[%clk 0:01:58]} 33. Kd4 {[%clk 0:00:40]}  Rxa3 {[%clk 0:01:58]} 34. c5 {[%clk 0:00:39]}  Ra1 {[%clk 0:01:58]} 35. c6 {[%clk 0:00:38]}  Rc1 {[%clk 0:01:55]} 36. Qxa4 {[%clk 0:00:33]}  f4 {[%clk 0:01:54]} 37. Ke4 {[%clk 0:00:16]}  Bd6 {[%clk 0:01:54]} 38. Qa8+ {[%clk 0:00:15]}  Kg7 {[%clk 0:01:51]} 39. Qb7 {[%clk 0:00:11]}  Rc4+ {[%clk 0:01:51]} 40. Kd5 {[%clk 0:00:10]}  Rxc6 {[%clk 0:01:34]} 41. Kxc6 {[%clk 0:00:09]}  Be7 {[%clk 0:01:34]} 42. Kd7 {[%clk 0:00:08]}  Bxg5 {[%clk 0:01:34]} 43. Qf3 {[%clk 0:00:07]}  Kf6 {[%clk 0:01:32]} 44. Kd6 {[%clk 0:00:06]}  Kf5 {[%clk 0:01:32]} 45. Kd5 {[%clk 0:00:06]}  Bf6 {[%clk 0:01:31]} 46. Qh3+ {[%clk 0:00:04]}  Kg5 {[%clk 0:01:31]} 47. Qh7 {[%clk 0:00:02]}  f3 {[%clk 0:01:24]} 48. Ke4 {[%clk 0:00:02]}  f2 {[%clk 0:01:25]} 49. Qh3 {[%clk 0:00:03]}  Be7 {[%clk 0:01:19]} 50. Qg2+ {[%clk 0:00:03]}  Kh6 {[%clk 0:01:20]} 51. Qxf2 {[%clk 0:00:04]}  Kg7 {[%clk 0:01:19]} 52. Qb2+ {[%clk 0:00:03]}  Bf6 {[%clk 0:01:20]} 53. Qb3 {[%clk 0:00:04]}  Be7 {[%clk 0:01:19]} 54. Qb5 {[%clk 0:00:04]}  Bf6 {[%clk 0:01:19]} 55. Qa6 {[%clk 0:00:05]}  Be7 {[%clk 0:01:19]} 56. Qb7 {[%clk 0:00:06]}  Bf8 {[%clk 0:01:20]} 57. Qa8 {[%clk 0:00:07]}  Be7 {[%clk 0:01:20]} 58. Qe8 {[%clk 0:00:06]}  Bf8 {[%clk 0:01:21]} 59. Kd5 {[%clk 0:00:06]}  Ba3 {[%clk 0:01:21]} 60. Kc6 {[%clk 0:00:06]}  Bf8 {[%clk 0:01:22]} 61. Kd7 {[%clk 0:00:06]}  Bb4 {[%clk 0:01:22]} 62. Qe5+ {[%clk 0:00:06]}  Kg8 {[%clk 0:01:22]} 63. Ke8 {[%clk 0:00:05]}  Bc3 {[%clk 0:01:21]} 64. Qxc3 {[%clk 0:00:04]} 1-0


[Site "https://www.chess.com"]

[Event "Titled Tuesday Blitz May 30 Late 2023"]
[White "Arencibia Monduy, Antonio"]
[Black "Arabidze, Meri"]
[WhiteFideId "3507939"]
[BlackFideId "13604040"]
[WhiteElo "2467"]
[BlackElo "2405"]
[Result "0-1"]
[Round "10"]
[TimeControl "180+2"]
[Date "2023.05.31"]
[WhiteClock "0:00:01"]
[BlackClock "0:00:47"]

1. e4 {[%clk 0:03:00]}  c5 {[%clk 0:03:00]} 2. Nf3 {[%clk 0:03:00]}  e6 {[%clk 0:03:00]} 3. c3 {[%clk 0:03:01]}  Nf6 {[%clk 0:02:59]} 4. e5 {[%clk 0:03:01]}  Nd5 {[%clk 0:03:00]} 5. d4 {[%clk 0:03:02]}  cxd4 {[%clk 0:03:00]} 6. cxd4 {[%clk 0:03:02]}  b6 {[%clk 0:03:00]} 7. Bd3 {[%clk 0:03:02]}  Ba6 {[%clk 0:03:00]} 8. O-O {[%clk 0:03:01]}  Bxd3 {[%clk 0:03:00]} 9. Qxd3 {[%clk 0:03:02]}  Be7 {[%clk 0:02:58]} 10. Nc3 {[%clk 0:03:02]}  Nxc3 {[%clk 0:02:56]} 11. bxc3 {[%clk 0:03:03]}  O-O {[%clk 0:02:54]} 12. c4 {[%clk 0:02:49]}  d5 {[%clk 0:02:49]} 13. exd6 {[%clk 0:02:45]}  Qxd6 {[%clk 0:02:49]} 14. Bg5 {[%clk 0:02:40]}  Nd7 {[%clk 0:02:36]} 15. Bxe7 {[%clk 0:02:35]}  Qxe7 {[%clk 0:02:37]} 16. Rfe1 {[%clk 0:02:34]}  Rfd8 {[%clk 0:02:25]} 17. Rad1 {[%clk 0:02:29]}  Rac8 {[%clk 0:02:19]} 18. d5 {[%clk 0:02:23]}  Nc5 {[%clk 0:02:19]} 19. Qa3 {[%clk 0:02:04]}  Qb7 {[%clk 0:02:15]} 20. dxe6 {[%clk 0:01:42]}  Nxe6 {[%clk 0:02:16]} 21. Qe3 {[%clk 0:00:58]}  h6 {[%clk 0:02:11]} 22. Ne5 {[%clk 0:00:56]}  Nc5 {[%clk 0:02:04]} 23. f4 {[%clk 0:00:42]}  Re8 {[%clk 0:01:39]} 24. Qd4 {[%clk 0:00:34]}  Qe7 {[%clk 0:01:20]} 25. Nf3 {[%clk 0:00:33]}  Qc7 {[%clk 0:01:16]} 26. Rxe8+ {[%clk 0:00:32]}  Rxe8 {[%clk 0:01:17]} 27. Ne5 {[%clk 0:00:28]}  Ne6 {[%clk 0:01:10]} 28. Qf2 {[%clk 0:00:19]}  Nxf4 {[%clk 0:01:05]} 29. Qxf4 {[%clk 0:00:16]}  Qxe5 {[%clk 0:01:05]} 30. Qxe5 {[%clk 0:00:15]}  Rxe5 {[%clk 0:01:06]} 31. Rd7 {[%clk 0:00:16]}  Ra5 {[%clk 0:01:05]} 32. Rd2 {[%clk 0:00:14]}  g5 {[%clk 0:01:01]} 33. Kf2 {[%clk 0:00:13]}  Kg7 {[%clk 0:01:01]} 34. Ke3 {[%clk 0:00:13]}  Kg6 {[%clk 0:00:58]} 35. Kd4 {[%clk 0:00:14]}  h5 {[%clk 0:00:56]} 36. Kc3 {[%clk 0:00:07]}  h4 {[%clk 0:00:57]} 37. h3 {[%clk 0:00:07]}  f6 {[%clk 0:00:55]} 38. Kb4 {[%clk 0:00:07]}  Re5 {[%clk 0:00:46]} 39. Rd7 {[%clk 0:00:03]}  a5+ {[%clk 0:00:46]} 40. Kc3 {[%clk 0:00:01]}  Re2 {[%clk 0:00:47]} 0-1


[Site "https://www.chess.com"]

[Event "Titled Tuesday Blitz May 30 Late 2023"]
[White "Pinheiro, Iung Alicio de O."]
[Black "Skaric, Djuro"]
[WhiteFideId "2104350"]
[BlackFideId "934569"]
[WhiteElo "2283"]
[BlackElo "2282"]
[Result "1-0"]
[Round "10"]
[TimeControl "180+2"]
[Date "2023.05.31"]
[WhiteClock "0:00:18"]
[BlackClock "0:00:17"]

1. d4 {[%clk 0:03:00]}  d6 {[%clk 0:03:00]} 2. e4 {[%clk 0:02:58]}  g6 {[%clk 0:03:01]} 3. h4 {[%clk 0:02:56]}  h6 {[%clk 0:02:56]} 4. Bc4 {[%clk 0:02:55]}  Bg7 {[%clk 0:02:53]} 5. Qf3 {[%clk 0:02:52]}  e6 {[%clk 0:02:52]} 6. c3 {[%clk 0:02:39]}  Nc6 {[%clk 0:02:50]} 7. Ne2 {[%clk 0:02:34]}  Nf6 {[%clk 0:02:50]} 8. Bb3 {[%clk 0:02:31]}  O-O {[%clk 0:02:49]} 9. Ng3 {[%clk 0:02:20]}  e5 {[%clk 0:02:49]} 10. d5 {[%clk 0:02:05]}  Bg4 {[%clk 0:02:48]} 11. Qd3 {[%clk 0:02:04]}  Ne7 {[%clk 0:02:48]} 12. f3 {[%clk 0:02:00]}  Bc8 {[%clk 0:02:42]} 13. h5 {[%clk 0:02:00]}  g5 {[%clk 0:02:41]} 14. Nd2 {[%clk 0:01:57]}  a5 {[%clk 0:02:40]} 15. Ndf1 {[%clk 0:01:56]}  a4 {[%clk 0:02:40]} 16. Bc2 {[%clk 0:01:51]}  b6 {[%clk 0:02:40]} 17. Ne3 {[%clk 0:01:50]}  Ba6 {[%clk 0:02:38]} 18. c4 {[%clk 0:01:47]}  Bc8 {[%clk 0:02:32]} 19. Bd2 {[%clk 0:01:39]}  Bd7 {[%clk 0:02:32]} 20. a3 {[%clk 0:01:36]}  Qc8 {[%clk 0:02:31]} 21. Ne2 {[%clk 0:01:27]}  Re8 {[%clk 0:02:25]} 22. g4 {[%clk 0:01:26]}  Bxg4 {[%clk 0:02:10]} 23. Nxg4 {[%clk 0:01:22]}  Nxg4 {[%clk 0:02:10]} 24. fxg4 {[%clk 0:01:23]}  Qxg4 {[%clk 0:02:10]} 25. O-O-O {[%clk 0:01:22]}  Qd7 {[%clk 0:02:08]} 26. Rdf1 {[%clk 0:01:21]}  f5 {[%clk 0:02:07]} 27. exf5 {[%clk 0:01:18]}  Bf6 {[%clk 0:02:04]} 28. Ng3 {[%clk 0:01:17]}  Kg7 {[%clk 0:02:01]} 29. Ne4 {[%clk 0:01:17]}  Ng8 {[%clk 0:01:59]} 30. Rhg1 {[%clk 0:01:17]}  Kh8 {[%clk 0:01:58]} 31. Kb1 {[%clk 0:01:03]}  Rab8 {[%clk 0:01:46]} 32. Rf2 {[%clk 0:00:59]}  Qe7 {[%clk 0:01:37]} 33. Rfg2 {[%clk 0:00:55]}  Rf8 {[%clk 0:01:29]} 34. Bxa4 {[%clk 0:00:55]}  Qf7 {[%clk 0:01:25]} 35. Bd1 {[%clk 0:00:53]}  Ne7 {[%clk 0:01:22]} 36. Rf1 {[%clk 0:00:42]}  b5 {[%clk 0:01:21]} 37. Bb3 {[%clk 0:00:38]}  bxc4 {[%clk 0:01:21]} 38. Bxc4 {[%clk 0:00:38]}  Rb7 {[%clk 0:01:17]} 39. Ka2 {[%clk 0:00:38]}  Rfb8 {[%clk 0:01:16]} 40. Bc3 {[%clk 0:00:39]}  Ng8 {[%clk 0:01:02]} 41. Rfg1 {[%clk 0:00:37]}  Qxh5 {[%clk 0:00:52]} 42. Nd2 {[%clk 0:00:37]}  e4 {[%clk 0:00:38]} 43. Nxe4 {[%clk 0:00:31]}  Qf7 {[%clk 0:00:35]} 44. Nxf6 {[%clk 0:00:29]}  Nxf6 {[%clk 0:00:34]} 45. Qd4 {[%clk 0:00:30]}  Rf8 {[%clk 0:00:33]} 46. Rh1 {[%clk 0:00:25]}  Kh7 {[%clk 0:00:32]} 47. Rxg5 {[%clk 0:00:24]}  c5 {[%clk 0:00:18]} 48. dxc6 {[%clk 0:00:22]}  d5 {[%clk 0:00:18]} 49. cxb7 {[%clk 0:00:20]}  dxc4 {[%clk 0:00:19]} 50. Rg6 {[%clk 0:00:19]}  Qxb7 {[%clk 0:00:17]} 51. Rhxh6# {[%clk 0:00:18]} 1-0


[Site "https://www.chess.com"]

[Event "Titled Tuesday Blitz May 30 Late 2023"]
[White "Fiorito, Francisco"]
[Black "Ansh M Shah"]
[WhiteFideId "180165"]
[BlackFideId "25033379"]
[WhiteElo "2341"]
[BlackElo "2084"]
[Result "1-0"]
[Round "10"]
[TimeControl "180+2"]
[Date "2023.05.31"]
[WhiteClock "0:01:48"]
[BlackClock "0:00:02"]

1. e4 {[%clk 0:02:58]}  c6 {[%clk 0:03:00]} 2. Nc3 {[%clk 0:02:55]}  d5 {[%clk 0:03:01]} 3. Nf3 {[%clk 0:02:56]}  Bg4 {[%clk 0:03:00]} 4. h3 {[%clk 0:02:57]}  Bxf3 {[%clk 0:03:01]} 5. Qxf3 {[%clk 0:02:57]}  e6 {[%clk 0:02:54]} 6. d3 {[%clk 0:02:55]}  Nd7 {[%clk 0:02:38]} 7. Be2 {[%clk 0:02:54]}  Bc5 {[%clk 0:02:37]} 8. Qg3 {[%clk 0:02:52]}  Bd4 {[%clk 0:02:36]} 9. O-O {[%clk 0:02:48]}  Ne7 {[%clk 0:02:36]} 10. Kh1 {[%clk 0:02:36]}  O-O {[%clk 0:02:36]} 11. f4 {[%clk 0:02:35]}  b5 {[%clk 0:02:23]} 12. f5 {[%clk 0:02:34]}  exf5 {[%clk 0:02:22]} 13. exf5 {[%clk 0:02:34]}  b4 {[%clk 0:02:18]} 14. Nd1 {[%clk 0:02:32]}  Qb6 {[%clk 0:02:14]} 15. h4 {[%clk 0:02:27]}  a5 {[%clk 0:02:11]} 16. h5 {[%clk 0:02:23]}  Qb8 {[%clk 0:02:06]} 17. Qg4 {[%clk 0:02:19]}  Nf6 {[%clk 0:02:01]} 18. Qh3 {[%clk 0:02:19]}  Qe5 {[%clk 0:01:59]} 19. Bg4 {[%clk 0:02:14]}  Nxg4 {[%clk 0:01:57]} 20. Qxg4 {[%clk 0:02:15]}  a4 {[%clk 0:01:43]} 21. c3 {[%clk 0:02:05]}  bxc3 {[%clk 0:01:42]} 22. bxc3 {[%clk 0:02:05]}  Bxc3 {[%clk 0:00:58]} 23. Nxc3 {[%clk 0:02:04]}  Qxc3 {[%clk 0:00:59]} 24. f6 {[%clk 0:02:05]}  g6 {[%clk 0:00:21]} 25. fxe7 {[%clk 0:01:59]}  Qxa1 {[%clk 0:00:21]} 26. exf8=Q+ {[%clk 0:01:55]}  Rxf8 {[%clk 0:00:22]} 27. hxg6 {[%clk 0:01:54]}  hxg6 {[%clk 0:00:23]} 28. Qe2 {[%clk 0:01:49]}  Qd4 {[%clk 0:00:17]} 29. Bb2 {[%clk 0:01:48]}  Qh4+ {[%clk 0:00:18]} 30. Kg1 {[%clk 0:01:48]}  a3 {[%clk 0:00:15]} 31. Bf6 {[%clk 0:01:49]}  Qh7 {[%clk 0:00:09]} 32. Rf3 {[%clk 0:01:49]}  Qh5 {[%clk 0:00:02]} 33. Rh3 {[%clk 0:01:48]}  Qxe2 {[%clk 0:00:02]} 34. Rh8# {[%clk 0:01:48]} 1-0


[Site "https://www.chess.com"]

[Event "Titled Tuesday Blitz May 30 Late 2023"]
[White "Smiechu"]
[Black "Chylewski, Patryk"]
[BlackFideId "1186191"]
[WhiteElo "2368"]
[BlackElo "2163"]
[Result "1-0"]
[Round "10"]
[TimeControl "180+2"]
[Date "2023.05.31"]
[WhiteClock "0:02:05"]
[BlackClock "0:00:49"]

1. e4 {[%clk 0:03:00]}  c6 {[%clk 0:02:59]} 2. d4 {[%clk 0:03:00]}  d5 {[%clk 0:02:59]} 3. f3 {[%clk 0:03:01]}  e6 {[%clk 0:02:58]} 4. Nc3 {[%clk 0:02:56]}  Bb4 {[%clk 0:02:57]} 5. e5 {[%clk 0:02:46]}  c5 {[%clk 0:02:52]} 6. a3 {[%clk 0:02:46]}  Bxc3+ {[%clk 0:02:52]} 7. bxc3 {[%clk 0:02:45]}  Ne7 {[%clk 0:02:46]} 8. f4 {[%clk 0:02:44]}  Qa5 {[%clk 0:02:41]} 9. Bd2 {[%clk 0:02:43]}  Nbc6 {[%clk 0:02:38]} 10. Nf3 {[%clk 0:02:42]}  Qa4 {[%clk 0:02:27]} 11. Bd3 {[%clk 0:02:26]}  cxd4 {[%clk 0:02:18]} 12. cxd4 {[%clk 0:02:26]}  Nxd4 {[%clk 0:02:14]} 13. O-O {[%clk 0:02:26]}  Bd7 {[%clk 0:02:03]} 14. Rb1 {[%clk 0:02:22]}  Nxf3+ {[%clk 0:01:52]} 15. Qxf3 {[%clk 0:02:21]}  b6 {[%clk 0:01:38]} 16. Bb4 {[%clk 0:02:18]}  Nc6 {[%clk 0:01:12]} 17. Bd6 {[%clk 0:02:17]}  Na5 {[%clk 0:01:10]} 18. Qg3 {[%clk 0:02:13]}  g6 {[%clk 0:01:07]} 19. Qg5 {[%clk 0:02:06]}  Nc6 {[%clk 0:00:49]} 20. Bb5 {[%clk 0:02:05]} 1-0


[Site "https://www.chess.com"]

[Event "Titled Tuesday Blitz May 30 Late 2023"]
[White "Osmonbekov, Talaibek"]
[Black "KorolDimitriy75"]
[WhiteFideId "2017253"]
[WhiteElo "2135"]
[BlackElo "2450"]
[Result "1-0"]
[Round "10"]
[TimeControl "180+2"]
[Date "2023.05.31"]
[WhiteClock "0:00:06"]
[BlackClock "0:00:04"]

1. d4 {[%clk 0:03:00]}  Nf6 {[%clk 0:02:59]} 2. Bf4 {[%clk 0:03:01]}  c5 {[%clk 0:02:59]} 3. d5 {[%clk 0:03:00]}  Qb6 {[%clk 0:02:43]} 4. Nc3 {[%clk 0:02:57]}  Qxb2 {[%clk 0:02:34]} 5. Bd2 {[%clk 0:02:56]}  Qb6 {[%clk 0:02:31]} 6. e4 {[%clk 0:02:56]}  d6 {[%clk 0:02:29]} 7. h3 {[%clk 0:02:55]}  g6 {[%clk 0:02:24]} 8. f4 {[%clk 0:02:55]}  Bg7 {[%clk 0:02:24]} 9. Nf3 {[%clk 0:02:56]}  O-O {[%clk 0:02:23]} 10. Rb1 {[%clk 0:02:57]}  Qd8 {[%clk 0:02:22]} 11. Bc4 {[%clk 0:02:56]}  Nbd7 {[%clk 0:02:13]} 12. a4 {[%clk 0:02:49]}  Ne8 {[%clk 0:01:45]} 13. O-O {[%clk 0:02:43]}  Nc7 {[%clk 0:01:40]} 14. Qe1 {[%clk 0:02:11]}  e6 {[%clk 0:01:35]} 15. dxe6 {[%clk 0:02:07]}  Nxe6 {[%clk 0:01:33]} 16. Bxe6 {[%clk 0:01:26]}  fxe6 {[%clk 0:01:33]} 17. Ng5 {[%clk 0:01:25]}  Qe7 {[%clk 0:01:19]} 18. Qg3 {[%clk 0:01:01]}  b6 {[%clk 0:01:14]} 19. Rbe1 {[%clk 0:00:56]}  Ba6 {[%clk 0:01:13]} 20. Nb5 {[%clk 0:00:48]}  Nf6 {[%clk 0:00:53]} 21. f5 {[%clk 0:00:25]}  gxf5 {[%clk 0:00:28]} 22. exf5 {[%clk 0:00:23]}  e5 {[%clk 0:00:29]} 23. Ne6 {[%clk 0:00:21]}  Rf7 {[%clk 0:00:22]} 24. Bh6 {[%clk 0:00:16]}  Rc8 {[%clk 0:00:10]} 25. c4 {[%clk 0:00:13]}  Kh8 {[%clk 0:00:09]} 26. Bxg7+ {[%clk 0:00:12]}  Rxg7 {[%clk 0:00:09]} 27. Nxg7 {[%clk 0:00:12]}  Qxg7 {[%clk 0:00:10]} 28. Qxg7+ {[%clk 0:00:11]}  Kxg7 {[%clk 0:00:11]} 29. Nxd6 {[%clk 0:00:11]}  Rd8 {[%clk 0:00:11]} 30. Nb5 {[%clk 0:00:10]}  e4 {[%clk 0:00:09]} 31. g4 {[%clk 0:00:10]}  h6 {[%clk 0:00:08]} 32. Rd1 {[%clk 0:00:10]}  Re8 {[%clk 0:00:08]} 33. Rfe1 {[%clk 0:00:06]}  Bxb5 {[%clk 0:00:06]} 34. axb5 {[%clk 0:00:05]}  Re7 {[%clk 0:00:06]} 35. Kf2 {[%clk 0:00:05]}  Kf7 {[%clk 0:00:06]} 36. Ke3 {[%clk 0:00:05]}  Rc7 {[%clk 0:00:05]} 37. Rd6 {[%clk 0:00:05]}  Ke7 {[%clk 0:00:04]} 38. Re6+ {[%clk 0:00:05]}  Kf7 {[%clk 0:00:05]} 39. Rd1 {[%clk 0:00:05]}  Rd7 {[%clk 0:00:03]} 40. Rxd7+ {[%clk 0:00:05]}  Nxd7 {[%clk 0:00:03]} 41. Rxh6 {[%clk 0:00:05]}  Nf6 {[%clk 0:00:04]} 42. Rxf6+ {[%clk 0:00:05]}  Kxf6 {[%clk 0:00:04]} 43. Kxe4 {[%clk 0:00:06]} 1-0


[Site "https://www.chess.com"]

[Event "Titled Tuesday Blitz May 30 Late 2023"]
[White "Annaberdiyev, Meylis"]
[Black "Kovalevsky, Stanislav"]
[WhiteFideId "14000563"]
[BlackFideId "13508598"]
[WhiteElo "2416"]
[BlackElo "2174"]
[Result "0-1"]
[Round "10"]
[TimeControl "180+2"]
[Date "2023.05.31"]
[WhiteClock "0:00:04"]
[BlackClock "0:00:02"]

1. e4 {[%clk 0:03:00]}  e6 {[%clk 0:03:00]} 2. d4 {[%clk 0:03:00]}  d5 {[%clk 0:03:01]} 3. e5 {[%clk 0:03:00]}  c5 {[%clk 0:03:00]} 4. Nf3 {[%clk 0:03:01]}  Nc6 {[%clk 0:03:01]} 5. Bd3 {[%clk 0:03:01]}  cxd4 {[%clk 0:03:01]} 6. O-O {[%clk 0:03:02]}  f6 {[%clk 0:03:01]} 7. Bb5 {[%clk 0:02:04]}  f5 {[%clk 0:02:26]} 8. Nbd2 {[%clk 0:01:19]}  Bd7 {[%clk 0:02:25]} 9. Nb3 {[%clk 0:01:20]}  Qb6 {[%clk 0:02:19]} 10. a4 {[%clk 0:01:15]}  a6 {[%clk 0:02:19]} 11. Bd3 {[%clk 0:01:10]}  Nge7 {[%clk 0:02:12]} 12. a5 {[%clk 0:01:10]}  Qc7 {[%clk 0:02:05]} 13. Re1 {[%clk 0:01:09]}  Ng6 {[%clk 0:02:01]} 14. Nbxd4 {[%clk 0:00:57]}  Be7 {[%clk 0:02:00]} 15. c3 {[%clk 0:00:41]}  O-O {[%clk 0:01:49]} 16. Nxc6 {[%clk 0:00:28]}  bxc6 {[%clk 0:01:48]} 17. g3 {[%clk 0:00:23]}  c5 {[%clk 0:01:41]} 18. h4 {[%clk 0:00:23]}  Be8 {[%clk 0:00:51]} 19. h5 {[%clk 0:00:22]}  Nh8 {[%clk 0:00:51]} 20. h6 {[%clk 0:00:22]}  g6 {[%clk 0:00:49]} 21. Bf4 {[%clk 0:00:20]}  Nf7 {[%clk 0:00:48]} 22. Qd2 {[%clk 0:00:20]}  Bc6 {[%clk 0:00:40]} 23. b4 {[%clk 0:00:19]}  Rfb8 {[%clk 0:00:31]} 24. Ng5 {[%clk 0:00:16]}  Bxg5 {[%clk 0:00:20]} 25. Bxg5 {[%clk 0:00:17]}  Nxe5 {[%clk 0:00:20]} 26. Rxe5 {[%clk 0:00:15]}  Qxe5 {[%clk 0:00:19]} 27. Re1 {[%clk 0:00:16]}  Qd6 {[%clk 0:00:14]} 28. Bf4 {[%clk 0:00:16]}  Qe7 {[%clk 0:00:12]} 29. Qe3 {[%clk 0:00:16]}  cxb4 {[%clk 0:00:11]} 30. cxb4 {[%clk 0:00:15]}  Rxb4 {[%clk 0:00:10]} 31. Be5 {[%clk 0:00:16]}  d4 {[%clk 0:00:09]} 32. Qf4 {[%clk 0:00:15]}  Rf8 {[%clk 0:00:08]} 33. Bxa6 {[%clk 0:00:14]}  Ra4 {[%clk 0:00:08]} 34. Bd3 {[%clk 0:00:13]}  Rxa5 {[%clk 0:00:08]} 35. Bc4 {[%clk 0:00:13]}  Bd5 {[%clk 0:00:08]} 36. Qxd4 {[%clk 0:00:12]}  Bxc4 {[%clk 0:00:07]} 37. Qxc4 {[%clk 0:00:13]}  Re8 {[%clk 0:00:07]} 38. Bc3 {[%clk 0:00:12]}  Rc5 {[%clk 0:00:06]} 39. Qd4 {[%clk 0:00:12]}  e5 {[%clk 0:00:04]} 40. Qd2 {[%clk 0:00:10]}  Qe6 {[%clk 0:00:04]} 41. Ra1 {[%clk 0:00:07]}  Rd5 {[%clk 0:00:03]} 42. Qb2 {[%clk 0:00:07]}  Qd7 {[%clk 0:00:03]} 43. Qb3 {[%clk 0:00:05]}  Rd8 {[%clk 0:00:02]} 44. Bxe5 {[%clk 0:00:05]}  Kf7 {[%clk 0:00:01]} 45. Bg7 {[%clk 0:00:05]}  Qe6 {[%clk 0:00:01]} 46. Rf1 {[%clk 0:00:05]}  R8d7 {[%clk 0:00:01]} 47. Qb8 {[%clk 0:00:05]}  Rd1 {[%clk 0:00:01]} 48. Qh8 {[%clk 0:00:05]}  Rxf1+ {[%clk 0:00:01]} 49. Kxf1 {[%clk 0:00:04]}  Qc4+ {[%clk 0:00:02]} 50. Kg2 {[%clk 0:00:04]}  Qe4+ {[%clk 0:00:02]} 51. Kh2 {[%clk 0:00:05]}  Ke6 {[%clk 0:00:03]} 52. Qg8+ {[%clk 0:00:05]}  Kd6 {[%clk 0:00:02]} 53. Bf8+ {[%clk 0:00:06]}  Kc7 {[%clk 0:00:03]} 54. Bg7 {[%clk 0:00:05]}  Qf3 {[%clk 0:00:03]} 55. Bd4 {[%clk 0:00:04]}  Rxd4 {[%clk 0:00:03]} 56. Qg7+ {[%clk 0:00:05]}  Rd7 {[%clk 0:00:02]} 57. Qe5+ {[%clk 0:00:05]}  Kc6 {[%clk 0:00:02]} 58. Qc3+ {[%clk 0:00:04]}  Qxc3 {[%clk 0:00:02]} 0-1


[Site "https://www.chess.com"]